bitfinex/quotes_SOLUSD_20241111
["timestamp","ask_amount","ask_price","bid_price","bid_amount"]
[1731346331294,4.77642822,218.13,217.92,20.0]
[1731346331717,4.77642822,218.13,217.93,28.49525464]
[1731346331922,4.77642822,218.13,217.94,20.0]
[1731346332427,4.77642822,218.13,217.93,28.49525464]
[1731346332604,4.77642822,218.13,217.96,20.0]
[1731346332798,1.97487033,218.16,217.97,22.518]
[1731346333121,4.77574822,218.15,217.97,22.518]
[1731346333822,23.776884,218.14,217.97,22.518]
[1731346334718,23.776884,218.14,217.97,51.01325464]
[1731346335114,23.776884,218.14,217.98,15.1759]
[1731346335424,1.97033487,218.18,218.02,43.776884]
[1731346335605,9.369,218.25,218.02,43.776884]
[1731346335794,4.77444072,218.23,218.02,43.776884]
[1731346336207,4.77444072,218.23,218.02,20.0]
[1731346336408,4.77444072,218.23,218.01,15.1759]
[1731346336409,4.87444072,218.23,218.01,15.1759]
[1731346336797,0.1,218.21,218.01,15.1759]
[1731346337702,23.776884,218.22,218.01,15.1759]
[1731346337908,0.1,218.2,218.01,15.1759]
[1731346338216,14.5992,218.19,218.01,15.1759]
[1731346338405,0.1,218.16,217.96,16.5256]
[1731346338607,0.1,218.15,217.96,16.5256]
[1731346339424,4.2256,218.15,217.96,16.5256]
[1731346339606,0.1,218.12,217.96,16.5256]
[1731346340320,9.269,218.11,217.95,6.5546]
[1731346340709,23.776884,218.1,217.95,6.5546]
[1731346342022,11.28288211,218.11,217.95,6.5546]
[1731346343126,23.776884,218.1,217.95,6.5546]
[1731346343314,2.01388211,218.11,217.96,20.0]
[1731346343503,9.269,218.17,217.96,20.0]
[1731346344501,9.269,218.17,217.96,48.49525464]
[1731346345221,9.269,218.17,217.97,43.70765464]
[1731346345523,9.269,218.17,217.99,28.49525464]
[1731346345524,27.51,218.16,217.99,28.49525464]
[1731346345730,27.51,218.16,217.97,43.70765464]
[1731346346300,27.51,218.16,217.99,28.49525464]
[1731346346924,51.286884,218.15,217.98,48.49525464]
[1731346347220,51.286884,218.15,217.98,20.0]
[1731346347426,51.286884,218.15,217.98,48.49525464]
[1731346347926,51.286884,218.15,217.98,20.0]
[1731346348112,51.286884,218.15,217.98,48.49525464]
[1731346348308,4.77556029,218.17,218.01,88.35113864]
[1731346348514,27.51,218.19,218.03,28.49525464]
[1731346349228,27.51,218.19,218.04,6.1319]
[1731346349426,27.51,218.25,218.05,28.49525464]
[1731346349605,27.51,218.22,218.04,6.1319]
[1731346349801,4.77363938,218.23,218.05,28.49525464]
[1731346350015,4.77363938,218.23,218.08,16.079]
[1731346350325,4.77363938,218.23,218.09,23.776884]
[1731346350531,18.414023,218.4,218.17,28.49525464]
[1731346350740,18.414023,218.4,218.19,28.49525464]
[1731346350907,4.77079326,218.37,218.19,28.49525464]
[1731346351923,4.77079326,218.37,218.2,23.776884]
[1731346352314,4.77079326,218.37,218.22,72.27213864]
[1731346352512,2.32270206,218.38,218.22,28.49525464]
[1731346352719,2.32270206,218.38,218.21,20.0]
[1731346353111,27.51,218.4,218.21,20.0]
[1731346353421,29.50918301,218.4,218.2,20.0]
[1731346353621,27.51,218.38,218.17,20.0]
[1731346354727,23.776884,218.37,218.17,20.0]
[1731346354930,23.776884,218.37,218.18,23.776884]
[1731346355428,23.776884,218.38,218.18,23.776884]
[1731346355627,23.776884,218.38,218.2,23.776884]
[1731346355806,23.776884,218.38,218.19,28.49525464]
[1731346356016,23.776884,218.38,218.17,48.49525464]
[1731346356322,23.776884,218.38,218.18,23.776884]
[1731346356931,51.286884,218.38,218.17,20.0]
[1731346358444,51.286884,218.38,218.17,48.49525464]
[1731346358818,51.286884,218.38,218.18,23.776884]
[1731346359014,1.99918301,218.4,218.21,48.49525464]
[1731346359221,4.77026397,218.41,218.22,23.776884]
[1731346359620,4.77026397,218.41,218.23,20.0]
[1731346359833,4.77026397,218.41,218.21,28.49525464]
[1731346360132,4.77026397,218.41,218.22,20.0]
[1731346360517,6.73536901,218.41,218.24,20.0]
[1731346360723,5.3302,218.44,218.26,20.0]
[1731346361135,4.7695815,218.41,218.27,21.6]
[1731346361925,23.776884,218.4,218.27,21.6]
[1731346363828,23.776884,218.4,218.09,96.57367031]
[1731346363829,51.286884,218.4,218.18,15.4112]
[1731346364136,23.776884,218.4,218.19,0.1]
[1731346364444,23.776884,218.4,218.2,28.49525464]
[1731346364625,4.7695815,218.41,218.24,28.49525464]
[1731346364824,4.7695815,218.41,218.25,6.0717]
[1731346365024,4.7695815,218.41,218.26,23.776884]
[1731346365225,7.35830963,218.44,218.26,23.776884]
[1731346365436,4.76967694,218.42,218.26,23.776884]
[1731346365744,4.76967694,218.42,218.27,20.0]
[1731346366236,5.3302,218.44,218.3,20.0]
[1731346366415,14.5992,218.49,218.31,23.776884]
[1731346366619,5.3302,218.49,218.33,23.776884]
[1731346366914,23.631807,218.49,218.29,43.71825464]
[1731346367118,23.631807,218.49,218.29,15.223]
[1731346368725,23.776884,218.48,218.29,15.223]
[1731346372035,23.776884,218.48,218.3,23.776884]
[1731346372225,23.776884,218.48,218.29,15.223]
[1731346372226,51.186884,218.48,218.29,15.223]
[1731346373326,23.776884,218.48,218.3,20.0]
[1731346373522,23.776884,218.48,218.32,20.0]
[1731346374144,5.3302,218.49,218.32,20.0]
[1731346374439,5.3302,218.49,218.33,23.776884]
[1731346374741,5.3302,218.49,218.29,15.223]
[1731346374942,5.3302,218.49,218.3,20.0]
[1731346375757,23.776884,218.48,218.3,20.0]
[1731346376338,23.776884,218.48,218.32,20.0]
[1731346377221,28.54512084,218.48,218.32,20.0]
[1731346377425,4.76823684,218.48,218.33,23.776884]
[1731346378745,4.76823684,218.48,218.3,43.776884]
[1731346379150,4.76823684,218.48,218.3,113.776884]
[1731346379848,23.776884,218.47,218.3,20.0]
[1731346380748,23.776884,218.44,218.29,15.223]
[1731346382144,51.186884,218.44,218.29,15.223]
[1731346382358,56.517084,218.42,218.2,6.3139]
[1731346383433,56.617084,218.42,218.2,6.3139]
[1731346383644,32.7402,218.36,218.14,6.101]
[1731346383836,27.41,218.34,218.14,6.101]
[1731346384032,27.41,218.31,218.14,6.101]
[1731346384251,27.41,218.26,218.12,16.5113]
[1731346384551,23.776884,218.25,218.12,16.5113]
[1731346384935,5.3302,218.24,218.09,6.101]
[1731346386141,5.3302,218.24,218.1,23.776884]
[1731346386343,23.776884,218.28,218.1,23.776884]
[1731346386954,9.269,218.29,218.1,23.776884]
[1731346387145,23.776884,218.28,218.12,23.776884]
[1731346387345,9.269,218.29,218.13,20.0]
[1731346389737,23.776884,218.28,218.13,20.0]
[1731346389942,23.776884,218.28,218.1,23.776884]
[1731346390758,23.776884,218.28,218.11,28.49525464]
[1731346391150,23.776884,218.28,218.13,20.0]
[1731346391351,9.269,218.29,218.15,20.0]
[1731346392239,5.3302,218.3,218.17,20.0]
[1731346392762,9.269,218.34,218.17,64.03485464]
[1731346392968,9.269,218.34,218.17,35.5396]
[1731346393659,23.776884,218.33,218.17,35.5396]
[1731346394640,23.776884,218.33,218.17,64.03485464]
[1731346395142,9.269,218.34,218.19,20.0]
[1731346395341,9.269,218.34,218.19,48.49525464]
[1731346395548,9.269,218.34,218.19,20.0]
[1731346396243,4.77102466,218.38,218.2,6.2391]
[1731346396442,4.77102466,218.38,218.21,48.49525464]
[1731346397043,32.7402,218.4,218.21,48.49525464]
[1731346397242,32.89885,218.51,218.28,43.776884]
[1731346397767,27.41,218.49,218.28,43.776884]
[1731346398644,27.41,218.49,218.28,20.0]
[1731346398953,27.41,218.49,218.31,6.2391]
[1731346399162,27.41,218.49,218.32,20.0]
[1731346399659,27.41,218.49,218.31,6.2391]
[1731346399862,27.41,218.49,218.28,20.0]
[1731346400041,27.41,218.47,218.27,16.3503]
[1731346400246,51.186884,218.41,218.19,22.5251]
[1731346402163,51.186884,218.41,218.2,28.49525464]
[1731346402543,51.186884,218.41,218.21,20.0]
[1731346404258,4.1208,218.4,218.19,22.5251]
[1731346404469,4.1208,218.4,218.14,34.54662103]
[1731346404470,42.0092,218.35,218.14,22.1726]
[1731346404643,23.776884,218.32,218.14,22.1726]
[1731346404959,23.776884,218.28,218.14,22.1726]
[1731346405164,23.776884,218.32,218.14,22.1726]
[1731346405165,23.776884,218.25,218.14,15.721]
[1731346405351,51.186884,218.25,218.09,22.7504]
[1731346405543,23.776884,218.25,218.09,22.7504]
[1731346406055,23.776884,218.34,218.11,0.1]
[1731346406239,0.1,218.3,218.11,18.59525464]
[1731346406446,23.876884,218.34,218.13,28.49525464]
[1731346406661,23.876884,218.34,218.14,20.0]
[1731346406960,0.1,218.31,218.14,20.0]
[1731346407263,0.1,218.28,218.12,23.776884]
[1731346407459,0.1,218.28,218.13,20.0]
[1731346407762,27.51,218.4,218.13,20.0]
[1731346407763,5.3302,218.47,218.27,20.0]
[1731346408061,0.1,218.4,218.27,20.0]
[1731346408270,0.1,218.45,218.26,20.0]
[1731346408641,4.7693722,218.46,218.28,48.49525464]
[1731346409044,7.27669452,218.47,218.29,23.776884]
[1731346409254,5.3302,218.47,218.3,28.49525464]
[1731346409555,5.3302,218.47,218.31,20.0]
[1731346409556,0.1,218.45,218.31,20.0]
[1731346409757,5.3302,218.47,218.31,20.0]
[1731346409944,0.1,218.45,218.31,20.0]
[1731346410550,5.3302,218.47,218.31,20.0]
[1731346411159,5.3302,218.47,218.32,28.49525464]
[1731346411467,0.1,218.46,218.32,20.0]
[1731346411667,5.3302,218.47,218.32,20.0]
[1731346411961,0.1,218.45,218.32,20.0]
[1731346412161,5.3302,218.61,218.45,20.0]
[1731346412361,5.3302,218.61,218.41,70.0]
[1731346412362,5.3302,218.61,218.47,20.0]
[1731346412586,5.3302,218.61,218.46,23.776884]
[1731346412758,5.3302,218.61,218.45,48.49525464]
[1731346412965,5.3302,218.61,218.46,23.776884]
[1731346413461,5.3302,218.68,218.52,43.776884]
[1731346413664,5.3302,218.68,218.54,23.776884]
[1731346414478,5.3302,218.68,218.55,20.0]
[1731346414649,0.1,218.81,218.55,20.0]
[1731346414650,0.1,218.72,218.57,48.49525464]
[1731346414847,0.1,218.72,218.59,28.49525464]
[1731346415052,0.1,218.72,218.6,20.0]
[1731346415465,0.1,218.72,218.58,23.776884]
[1731346415770,0.1,218.72,218.59,20.0]
[1731346416153,0.1,218.72,218.59,48.49525464]
[1731346417762,0.1,218.72,218.59,20.0]
[1731346418374,0.1,218.68,218.51,28.49525464]
[1731346418681,0.1,218.68,218.53,28.49525464]
[1731346419469,0.1,218.7,218.53,28.49525464]
[1731346419677,0.1,218.68,218.5,48.49525464]
[1731346419852,0.1,218.67,218.52,20.0]
[1731346420175,0.1,218.67,218.54,20.0]
[1731346420472,0.1,218.64,218.47,15.0521]
[1731346421071,0.1,218.62,218.47,15.0521]
[1731346421562,0.1,218.64,218.47,15.0521]
[1731346422174,0.1,218.62,218.48,23.776884]
[1731346422471,0.1,218.62,218.49,20.0]
[1731346423258,0.1,218.64,218.49,20.0]
[1731346423978,0.1,218.62,218.49,20.0]
[1731346424276,0.1,218.64,218.49,20.0]
[1731346424860,0.1,218.62,218.49,20.0]
[1731346425172,0.1,218.6,218.42,98.49525464]
[1731346425354,0.1,218.6,218.4,28.49525464]
[1731346425669,0.1,218.55,218.39,22.5212]
[1731346425875,0.1,218.57,218.39,121.01645464]
[1731346427150,0.1,218.57,218.41,23.776884]
[1731346427487,5.4302,218.6,218.45,23.776884]
[1731346427959,5.3302,218.6,218.48,20.0]
[1731346428983,23.876884,218.64,218.48,20.0]
[1731346429471,0.1,218.61,218.48,20.0]
[1731346429877,23.876884,218.64,218.48,20.0]
[1731346430063,0.1,218.61,218.48,20.0]
[1731346430377,0.1,218.72,218.53,23.776884]
[1731346430676,0.1,218.72,218.54,20.0]
[1731346431667,23.876884,218.72,218.54,20.0]
[1731346432469,0.1,218.71,218.54,20.0]
[1731346432675,0.1,218.67,218.54,20.0]
[1731346433678,0.1,218.7,218.55,23.776884]
[1731346433977,0.1,218.71,218.55,23.776884]
[1731346435259,0.1,218.67,218.52,20.0]
[1731346435457,9.269,218.81,218.51,98.49525464]
[1731346435458,1.98988578,218.87,218.8,20.0]
[1731346435667,0.1,219.09,218.85,20.0]
[1731346435875,18.257309,219.02,218.85,33.54063028]
[1731346436061,2.04668366,219.09,218.85,33.54063028]
[1731346436062,0.1,219.06,218.85,33.54063028]
[1731346436257,0.1,219.01,218.72,14.01337923]
[1731346436570,0.1,219.0,218.79,20.0]
[1731346436769,0.1,219.0,218.83,20.0]
[1731346437091,0.1,218.98,218.83,20.0]
[1731346437386,0.1,219.0,218.83,20.0]
[1731346437590,2.06120187,219.02,218.84,28.49525464]
[1731346437785,0.1,219.02,218.85,20.0]
[1731346437960,27.51,219.04,218.85,20.0]
[1731346438162,27.51,219.04,218.84,28.49525464]
[1731346438383,0.1,218.99,218.83,20.0]
[1731346438566,0.1,218.97,218.83,20.0]
[1731346439386,0.1,218.96,218.81,20.0]
[1731346439583,0.1,219.0,218.81,20.0]
[1731346439885,0.1,218.97,218.81,20.0]
[1731346440391,23.776884,218.99,218.83,20.0]
[1731346440569,23.776884,218.99,218.84,28.49525464]
[1731346440763,51.186884,218.99,218.83,20.0]
[1731346441276,0.1,218.96,218.75,20.0]
[1731346441584,0.1,218.96,218.74,70.0]
[1731346441585,51.186884,218.99,218.82,20.0]
[1731346441879,0.1,218.95,218.82,20.0]
[1731346442079,0.1,218.95,218.8,20.0]
[1731346442875,0.1,218.95,218.75,28.49525464]
[1731346443194,0.1,218.95,218.69,21.8448]
[1731346443195,0.1,218.86,218.69,15.6865]
[1731346443367,0.1,218.82,218.69,15.6865]
[1731346443571,51.186884,218.87,218.67,28.20175824]
[1731346443572,0.1,218.84,218.67,28.20175824]
[1731346443765,0.1,218.84,218.67,28.49525464]
[1731346443967,0.1,218.84,218.69,28.49525464]
[1731346444277,0.1,218.8,218.62,28.49525464]
[1731346444477,0.1,218.8,218.64,28.49525464]
[1731346444782,0.1,218.8,218.62,28.49525464]
[1731346444988,0.1,218.83,218.66,28.49525464]
[1731346445174,0.1,218.83,218.68,28.49525464]
[1731346445678,0.1,218.86,218.68,20.0]
[1731346446077,0.1,218.86,218.69,28.49525464]
[1731346446279,0.1,218.84,218.69,28.49525464]
[1731346446475,0.1,218.84,218.68,20.0]
[1731346446681,0.1,218.84,218.66,20.0]
[1731346447099,0.1,218.84,218.67,28.49525464]
[1731346447387,0.1,218.84,218.68,20.0]
[1731346447692,0.1,218.82,218.68,20.0]
[1731346448083,0.1,218.84,218.63,20.0]
[1731346448290,0.1,218.77,218.64,28.49525464]
[1731346448592,0.1,218.74,218.6,28.49525464]
[1731346449372,0.1,218.76,218.6,28.49525464]
[1731346449674,0.1,218.74,218.62,28.49525464]
[1731346450598,23.776884,218.8,218.66,28.49525464]
[1731346450777,9.4921,218.82,218.66,28.49525464]
[1731346451095,9.4921,218.82,218.67,43.776884]
[1731346451290,9.4921,218.82,218.67,20.0]
[1731346451790,9.3921,218.82,218.67,20.0]
[1731346452098,9.4921,218.82,218.67,20.0]
[1731346452803,23.776884,218.81,218.67,20.0]
[1731346453982,42.048675,218.81,218.67,20.0]
[1731346454181,23.776884,218.81,218.67,20.0]
[1731346454382,23.876884,218.82,218.68,28.49525464]
[1731346454783,0.1,218.84,218.69,20.0]
[1731346455101,18.368982,218.86,218.71,20.0]
[1731346455295,0.1,218.84,218.68,28.49525464]
[1731346455485,0.1,218.84,218.69,20.0]
[1731346455686,0.1,218.81,218.69,20.0]
[1731346455993,0.1,218.81,218.68,20.0]
[1731346456389,0.1,218.79,218.67,44.91705464]
[1731346456579,0.1,218.79,218.67,28.49525464]
[1731346457208,0.1,218.83,218.69,28.49525464]
[1731346457398,23.776884,218.85,218.71,28.49525464]
[1731346457703,2.07835621,218.87,218.72,20.0]
[1731346458089,0.1,218.87,218.72,20.0]
[1731346458497,0.1,218.87,218.73,28.49525464]
[1731346458694,6.3659,218.88,218.76,20.0]
[1731346458999,6.3659,218.88,218.78,20.0]
[1731346460483,0.1,218.89,218.78,20.0]
[1731346461606,0.1,218.85,218.71,20.0]
[1731346461789,0.1,218.85,218.73,20.0]
[1731346462604,33.4964,218.94,218.73,20.0]
[1731346462605,0.1,218.88,218.73,20.0]
[1731346462804,0.1,218.84,218.73,20.0]
[1731346464110,0.1,218.86,218.73,20.0]
[1731346464287,0.1,218.84,218.73,20.0]
[1731346464490,0.1,218.84,218.7,28.49525464]
[1731346464695,0.1,218.81,218.68,28.49525464]
[1731346465209,6.2353,218.8,218.68,28.49525464]
[1731346465511,0.1,218.77,218.63,28.49525464]
[1731346465692,0.1,218.77,218.61,28.49525464]
[1731346465902,0.1,218.69,218.54,6.55225168]
[1731346466202,0.1,218.69,218.52,28.49525464]
[1731346466593,0.1,218.68,218.54,28.49525464]
[1731346466990,0.1,218.68,218.51,15.2621]
[1731346466991,0.1,218.58,218.44,70.0]
[1731346467190,0.1,218.58,218.45,1.04633293]
[1731346468299,0.1,218.61,218.48,28.49525464]
[1731346468493,0.1,218.65,218.52,28.49525464]
[1731346468687,0.1,218.65,218.51,23.776884]
[1731346468887,6.3353,218.67,218.52,66.2306171]
[1731346469085,6.3353,218.67,218.54,20.0]
[1731346469288,6.3353,218.67,218.54,66.2306171]
[1731346470005,6.2353,218.67,218.56,20.0]
[1731346470309,6.3353,218.67,218.56,20.0]
[1731346470611,6.2353,218.67,218.56,20.0]
[1731346470996,6.2353,218.67,218.56,66.2306171]
[1731346473110,6.3353,218.67,218.56,66.2306171]
[1731346473499,6.3353,218.67,218.56,20.0]
[1731346473703,6.2353,218.67,218.56,20.0]
[1731346473909,6.2353,218.67,218.56,66.2306171]
[1731346474109,6.2353,218.67,218.58,66.2306171]
[1731346474309,6.4016,218.73,218.6,20.0]
[1731346476014,0.1,218.72,218.6,20.0]
[1731346476700,6.4016,218.73,218.6,20.0]
[1731346477390,0.1,218.72,218.6,20.0]
[1731346477714,0.1,218.69,218.56,46.2306171]
[1731346477904,0.1,218.69,218.55,20.0]
[1731346478207,23.776884,218.72,218.58,46.2306171]
[1731346478407,6.4016,218.73,218.58,46.2306171]
[1731346479610,6.4016,218.73,218.59,20.0]
[1731346481814,6.5016,218.73,218.59,20.0]
[1731346482007,6.5016,218.73,218.58,23.776884]
[1731346482207,6.5016,218.73,218.59,20.0]
[1731346482899,6.4016,218.73,218.59,20.0]
[1731346484019,6.5016,218.73,218.59,20.0]
[1731346484337,6.4016,218.73,218.59,20.0]
[1731346484623,6.5016,218.73,218.59,20.0]
[1731346486410,0.1,218.71,218.58,20.0]
[1731346486819,0.1,218.68,218.56,20.0]
[1731346488004,0.1,218.69,218.57,46.2306171]
[1731346488210,0.1,218.69,218.58,20.0]
[1731346488791,0.1,218.71,218.58,20.0]
[1731346488994,6.4016,218.73,218.61,46.2306171]
[1731346489296,6.4016,218.73,218.66,20.0]
[1731346489497,6.4016,218.73,218.67,46.2306171]
[1731346489910,1.72767689,218.82,218.68,20.0]
[1731346490119,6.5782,218.85,218.7,20.0]
[1731346490306,0.1,218.84,218.7,20.0]
[1731346491101,0.1,218.78,218.65,48.40162674]
[1731346491297,0.1,218.78,218.65,20.0]
[1731346491501,0.1,218.76,218.62,20.0]
[1731346491999,27.41,218.8,218.62,20.0]
[1731346492000,6.1203,218.73,218.62,20.0]
[1731346492201,0.1,218.71,218.57,28.40162674]
[1731346494408,23.776884,218.72,218.57,28.40162674]
[1731346494603,0.1,218.7,218.57,28.40162674]
[1731346494921,23.876884,218.72,218.57,28.40162674]
[1731346495106,23.776884,218.72,218.57,28.40162674]
[1731346495709,23.876884,218.72,218.58,20.0]
[1731346496110,0.1,218.69,218.58,20.0]
[1731346496923,0.1,218.71,218.58,20.0]
[1731346497123,23.776884,218.72,218.58,20.0]
[1731346498411,23.776884,218.72,218.56,20.0]
[1731346498614,0.1,218.7,218.56,20.0]
[1731346498803,23.876884,218.72,218.56,20.0]
[1731346499221,0.1,218.67,218.56,20.0]
[1731346501317,0.1,218.62,218.51,28.40162674]
[1731346501502,0.1,218.6,218.47,28.40162674]
[1731346501703,0.1,218.58,218.47,28.40162674]
[1731346501906,6.7422,218.61,218.47,28.40162674]
[1731346502230,0.1,218.58,218.47,28.40162674]
[1731346502612,6.6422,218.61,218.47,28.40162674]
[1731346502916,6.6422,218.61,218.51,28.40162674]
[1731346503118,6.6422,218.61,218.52,20.0]
[1731346503424,6.6422,218.61,218.55,28.40162674]
[1731346503825,6.2196,218.66,218.56,20.0]
[1731346504132,6.1196,218.66,218.56,20.0]
[1731346505330,0.1,218.63,218.54,20.0]
[1731346505626,0.1,218.63,218.52,20.0]
[1731346506135,0.1,218.63,218.49,28.40162674]
[1731346506313,0.1,218.6,218.49,28.40162674]
[1731346506931,0.1,218.59,218.47,28.40162674]
[1731346507115,23.776884,218.65,218.47,28.40162674]
[1731346507116,0.1,218.63,218.47,28.40162674]
[1731346507317,0.1,218.63,218.49,28.40162674]
[1731346507717,0.1,218.63,218.51,28.40162674]
[1731346507910,23.876884,218.65,218.51,28.40162674]
[1731346508112,0.1,218.62,218.52,20.0]
[1731346508334,0.1,218.6,218.52,20.0]
[1731346508634,23.776884,218.65,218.52,20.0]
[1731346509020,0.1,218.63,218.52,20.0]
[1731346509639,0.1,218.6,218.5,20.0]
[1731346509819,0.1,218.6,218.52,20.0]
[1731346510413,0.1,218.58,218.47,28.40162674]
[1731346511425,0.1,218.59,218.47,28.40162674]
[1731346511612,0.1,218.6,218.49,28.40162674]
[1731346511807,0.1,218.6,218.5,20.0]
[1731346512030,0.1,218.6,218.43,70.0]
[1731346512031,0.1,218.56,218.43,28.40162674]
[1731346512328,23.876884,218.58,218.45,28.40162674]
[1731346513028,0.1,218.54,218.39,28.40162674]
[1731346513228,0.1,218.54,218.37,70.0]
[1731346513229,0.1,218.54,218.41,28.40162674]
[1731346513420,0.1,218.54,218.43,28.40162674]
[1731346513620,23.876884,218.58,218.43,28.40162674]
[1731346513832,0.1,218.56,218.43,28.40162674]
[1731346514043,0.1,218.53,218.41,28.40162674]
[1731346514220,0.1,218.51,218.39,28.40162674]
[1731346514927,0.1,218.47,218.37,28.40162674]
[1731346515244,6.3671,218.46,218.33,28.40162674]
[1731346515531,6.4671,218.46,218.33,28.40162674]
[1731346515734,0.1,218.41,218.31,28.40162674]
[1731346516127,0.1,218.43,218.31,28.40162674]
[1731346516327,9.4921,218.45,218.31,28.40162674]
[1731346516524,23.776884,218.44,218.29,28.40162674]
[1731346516725,0.1,218.41,218.29,28.40162674]
[1731346517131,0.1,218.43,218.32,20.0]
[1731346517325,0.1,218.41,218.32,20.0]
[1731346517831,0.1,218.41,218.3,20.0]
[1731346518021,0.1,218.39,218.27,28.40162674]
[1731346518339,0.1,218.36,218.25,28.40162674]
[1731346518548,0.1,218.34,218.21,28.40162674]
[1731346519718,0.1,218.34,218.22,20.0]
[1731346520324,0.1,218.36,218.22,20.0]
[1731346520638,0.1,218.34,218.22,20.0]
[1731346520840,0.1,218.34,218.23,28.40162674]
[1731346521332,0.1,218.37,218.24,20.0]
[1731346522623,0.1,218.37,218.28,20.0]
[1731346523017,6.0148,218.38,218.28,20.0]
[1731346523225,0.1,218.37,218.29,28.40162674]
[1731346523527,6.0148,218.38,218.29,28.40162674]
[1731346523716,0.1,218.37,218.29,28.40162674]
[1731346524118,0.1,218.37,218.28,20.0]
[1731346524425,6.0148,218.38,218.32,20.0]
[1731346524940,9.3921,218.45,218.32,20.0]
[1731346524941,6.6064,218.44,218.33,28.40162674]
[1731346525115,6.6064,218.44,218.35,28.40162674]
[1731346525434,6.6064,218.44,218.36,20.0]
[1731346525637,0.1,218.51,218.36,20.0]
[1731346525638,9.3921,218.5,218.39,20.0]
[1731346525843,6.6131,218.49,218.43,20.0]
[1731346526419,6.7131,218.49,218.38,20.0]
[1731346526832,6.6131,218.49,218.38,20.0]
[1731346527143,6.7131,218.49,218.38,20.0]
[1731346527642,6.7131,218.49,218.33,93.776884]
[1731346527643,6.7131,218.49,218.4,20.0]
[1731346527941,6.6131,218.49,218.4,20.0]
[1731346528116,6.6131,218.49,218.41,28.40162674]
[1731346528746,6.6131,218.49,218.42,20.0]
[1731346529044,6.1684,218.55,218.44,20.0]
[1731346529731,6.1684,218.55,218.46,20.0]
[1731346531642,6.1684,218.55,218.44,20.0]
[1731346531947,6.1684,218.55,218.45,28.40162674]
[1731346532128,6.1684,218.55,218.46,20.0]
[1731346532664,6.1684,218.55,218.47,28.40162674]
[1731346532941,6.1684,218.55,218.48,20.0]
[1731346534837,6.5702,218.6,218.5,20.0]
[1731346535033,6.5702,218.6,218.51,28.40162674]
[1731346535234,6.5702,218.6,218.52,20.0]
[1731346535940,0.1,218.55,218.45,28.40162674]
[1731346536245,0.1,218.55,218.43,28.40162674]
[1731346536744,0.1,218.57,218.43,28.40162674]
[1731346536942,23.876884,218.59,218.45,28.40162674]
[1731346537449,23.876884,218.59,218.46,19.7901863]
[1731346538344,0.1,218.59,218.46,19.7901863]
[1731346538532,0.1,218.59,218.47,28.40162674]
[1731346539140,6.6702,218.6,218.46,23.776884]
[1731346539338,6.5702,218.6,218.5,28.40162674]
[1731346539533,6.6702,218.6,218.51,20.0]
[1731346539934,6.6702,218.6,218.48,28.40162674]
[1731346540250,6.6702,218.6,218.49,20.0]
[1731346540551,0.1,218.59,218.49,20.0]
[1731346541047,6.5702,218.6,218.49,20.0]